[Event "10th Norway Chess 2022"]
[Site "Stavanger"]
[Date "2022.06.02"]
[Round "3.1"]
[White "Giri, Anish"]
[Black "So, Wesley"]
[Result "1/2-1/2"]
[ECO "E36"]
[WhiteElo "2761"]
[BlackElo "2766"]
[Annotator "TA"]
[PlyCount "61"]
[EventDate "2022.05.30"]
[EventType "tourn"]
[EventCountry "NOR"]
[SourceTitle "playchess.com"]
[Source "ChessBase"]
[SourceQuality "1"]
[TimeControl "40/7200:0"]

{[%evp 12,61,32,26,15,12,11,12,22,8,11,14,10,16,11,12,14,16,16,15,14,14,7,13,20,14,9,11,15,8,6,6,15,2,2,2,2,0,2,2,2,2,2,2,2,2,2,0,2,2,2,0]} 1. d4 {[%emt 0:00:01]} Nf6 {[%emt 0:00:18]} 2. c4 {[%emt 0:00:06]} e6 {[%emt 0:00:05]} 3. Nc3 {[%emt 0:00:15]} Bb4 {[%emt 0:00:12]} 4. Qc2 {[%emt 0:00:06]} O-O {[%emt 0:05:45]} 5. a3 {[%emt 0:00:10]} Bxc3+ {[%emt 0:00:05]} 6. Qxc3 {[%emt 0:00:03]} d5 {[%emt 0:00:06]} 7. Nf3 {[%emt 0:00:05]} b6 {[%emt 0:00:12] E36: Nimzo-Indian: Classical: 4...d5 5 a3.} 8. Bg5 {[%emt 0:00:11] The position is equal.} dxc4 {[%emt 0:00:07]} 9. Qxc4 {[%emt 0:00:03]} Ba6 {[%emt 0:03:53]} 10. Qa4 {[%emt 0:00:47]} h6 {[%emt 0:00:14]} 11. Bh4 {[%emt 0:00:22]} c5 {[%emt 0:00:06]} 12. dxc5 {[%emt 0:00:27]} bxc5 {[%emt 0:00:05]} 13. Rd1 $1 {[%emt 0:01:11][%mdl 4] is more profitable than 13.Rc1 at the moment.} Qb6 {[%emt 0:02:26]} 14. Bxf6 {[%emt 0:00:13]} gxf6 {[%emt 0:00:08]} 15. e3 {[%emt 0:00:05]} Bxf1 {[%emt 0:00:58]} 16. Kxf1 {[%emt 0:00:16]} Nc6 {[%emt 0:00:05]} 17. Rb1 {[%emt 0:00:11]} Rad8 {[%emt 0:05:26]} 18. Ke2 {[%emt 0:02:54]} Rd5 {[%emt 0:02:58]} 19. Rhc1 {[%emt 0:01:25] [#]} Rb8 $146 {[%emt 0:07:32]} ({Predecessor:} 19... a5 20. Rd1 Rfd8 21. Rxd5 Rxd5 22. b3 Na7 23. Qg4+ Kh8 24. a4 Nc8 25. Qc4 Nd6 {½-½ (39) Palladino,M (2300)-Piacenti,L (2349) ICCF email 2020}) 20. b4 {[%emt 0:03:48]} Ne5 {[%emt 0:05:57]} 21. Nxe5 {[%emt 0:20:11]} Rxe5 {[%emt 0:00:06]} 22. Kf1 {[%emt 0:11:38]} Qb5+ {[%emt 0:03:22]} 23. Qxb5 {[%emt 0:00:05]} Rxb5 {[%emt 0:00:05]} 24. Ke2 {[%emt 0:02:34]} cxb4 {[%emt 0:05:38]} 25. Rxb4 {[%emt 0:00:02]} Rxb4 {[%emt 0:00:05]} 26. axb4 $11 {[%emt 0:00:04] KR-KR} Rb5 {[%emt 0:00:14]} 27. Rc4 {[%emt 0:00:04]} a5 {[%emt 0:00:05]} 28. bxa5 {[%emt 0:00:02]} Rxa5 {[%emt 0:00:04]} 29. g3 {[%emt 0:00:03]} Kg7 {[%emt 0:00:04]} 30. Rg4+ {[%emt 0:00:04]} Kf8 {[%emt 0:00:06]} 31. Rc4 {[%emt 0:00:03] An even fight not without its subleties.  Weighted Error Value: White=0.02 (flawless) /Black=0.01 (flawless)} 1/2-1/2

[Event "10th Norway Chess 2022"]
[Site "Stavanger"]
[Date "2022.06.02"]
[Round "3.1"]
[White "Anand, Viswanathan"]
[Black "Wang, Hao"]
[Result "1/2-1/2"]
[ECO "B33"]
[WhiteElo "2751"]
[BlackElo "2744"]
[Annotator "TA"]
[PlyCount "77"]
[EventDate "2022.05.30"]
[EventType "tourn"]
[EventCountry "NOR"]
[SourceTitle "playchess.com"]
[Source "ChessBase"]
[SourceQuality "1"]
[TimeControl "40/7200:0"]

{[%evp 24,77,14,16,22,8,12,10,20,6,19,16,18,18,17,16,18,7,3,0,0,0,0,0,0,9,18,10,54,51,85,86,87,87,100,59,56,27,105,104,161,161,158,154,158,152,152,158,158,70,268,264,290,290,281,158]} 1. e4 {[%emt 0:00:04]} c5 {[%emt 0:00:03]} 2. Nf3 {[%emt 0:00:09][%cal Bg1f3,Bf3d4,Bd4b5,Bb5a3,Ba3c2][%mdl 32]} Nc6 {[%emt 0:00:05]} 3. d4 {[%emt 0:00:12]} cxd4 {[%emt 0:00:05]} 4. Nxd4 {[%emt 0:00:07]} Nf6 {[%emt 0:00:07]} 5. Nc3 {[%emt 0:00:06]} e5 {[%emt 0:00:04]} 6. Ndb5 {[%emt 0:00:38]} d6 {[%emt 0:00:07]} 7. Bg5 {[%emt 0:01:49]} a6 {[%emt 0:00:38]} 8. Na3 {[%emt 0:00:09]} b5 {[%emt 0:00:05]} 9. Nd5 {[%emt 0:00:15]} Be7 {[%emt 0:00:06][%cal Bf8e7,Be7f6,Bf6g5][%mdl 32]} 10. Bxf6 {[%emt 0:00:14]} Bxf6 {[%emt 0:00:05]} 11. c3 {[%emt 0:00:15]} Rb8 {[%emt 0:00:30]} 12. Nc2 {[%emt 0:01:40]} Bg5 {[%emt 0:00:33]} 13. a3 {[%emt 0:01:26]} (13. a4 {with more complications.} bxa4 14. Nce3 Rxb2 15. Qxa4 Bd7 16. Bxa6 Qb8 17. O-O) 13... a5 {[%emt 0:01:00] B33: Sicilian: Pelikan and Sveshnikov Variations.} 14. Bd3 {[%emt 0:10:57]} Ne7 {[%emt 0:04:11]} 15. Nce3 {[%emt 0:05:07]} Bxe3 {[%emt 0:14:24] The position is equal.} 16. Nxe3 {[%emt 0:00:19]} O-O {[%emt 0:00:08]} 17. O-O {[%emt 0:02:24]} Be6 {[%emt 0:08:29]} 18. Qe2 {[%emt 0:06:34]} Qb6 {[%emt 0:12:26]} 19. Rfd1 {[%emt 0:01:51]} Rfd8 {[%emt 0:07:10]} 20. Rd2 {[%emt 0:00:50] [#]} g6 $146 {[%emt 0:03:26]} ({Predecessor:} 20... Qc5 21. Rad1 b4 22. axb4 axb4 23. Bc4 bxc3 24. bxc3 Bxc4 25. Nxc4 Ng6 26. g3 Rb3 27. Rd5 Qc7 28. Nxd6 Rdb8 29. c4 f6 30. Nb5 Qb6 31. Qa2 {1-0 (31) Roser,K (2319)-Sarthou,G (2326) France 1999}) 21. a4 {[%emt 0:09:46]} b4 {[%emt 0:12:54]} 22. Bb5 {[%emt 0:06:55]} bxc3 {[%emt 0:04:00]} 23. bxc3 {[%emt 0:00:16]} Rbc8 {[%emt 0:00:35]} 24. Rd3 {[%emt 0:03:36]} d5 {[%emt 0:13:47]} 25. Nxd5 {[%emt 0:05:38]} (25. exd5 {keeps more tension.} Bxd5 26. Rad1 Be6 27. Rxd8+ Rxd8 28. c4) 25... Nxd5 {[%emt 0:00:40]} (25... Bxd5 {looks sharper.} 26. exd5 Rxd5 27. Rad1 Rxd3 28. Rxd3 Qf6) 26. exd5 {[%emt 0:00:14]} Rxd5 {[%emt 0:00:07]} 27. Rxd5 {[%emt 0:00:14]} Bxd5 {[%emt 0:00:12]} 28. Qxe5 {[%emt 0:00:57]} Bc4 {[%emt 0:06:38]} 29. Rb1 {[%emt 0:11:37]} Qc5 {[%emt 0:02:52]} 30. Qe1 {[%emt 0:04:27]} Bxb5 {[%emt 0:06:15]} (30... h5 $11 {remains equal.}) 31. Rxb5 $16 {[%emt 0:00:13]} Qxc3 {[%emt 0:00:04]} (31... Qc6 $16) 32. Qxc3 $18 {[%emt 0:00:07]} Rxc3 $11 {[%emt 0:00:04][%cal Rc3c1][%mdl 4096] [#] Endgame KR-KR} 33. g3 {[%emt 0:00:10]} Ra3 {[%emt 0:00:12]} 34. Rxa5 {[%emt 0:00:05]} h5 {[%emt 0:00:04]} 35. h4 {[%emt 0:00:16] Threatens to win with Ra8+.} Kg7 {[%emt 0:00:24] [#]} 36. Ra6 {[%emt 0:00:08]} (36. Ra7 $1 $16) 36... Kf8 $2 {[%emt 0:01:06]} (36... f6 $14 37. a5 g5 38. hxg5 Ra1+ 39. Kg2 fxg5) 37. Kg2 {[%emt 0:00:24] White has a decisive advantage.} Kg8 {[%emt 0:00:31]} 38. a5 {[%emt 0:00:31]} Kg7 {[%emt 0:00:05]} 39. Ra7 {[%emt 0:01:44] Weighted Error Value: White=0.09 (flawless) /Black=0.28 (precise)} (39. Ra8 $18) 1/2-1/2

[Event "10th Norway Chess 2022"]
[Site "Stavanger"]
[Date "2022.06.06"]
[Round "6.1"]
[White "Carlsen, Magnus"]
[Black "Mamedyarov, Shakhriyar"]
[Result "1-0"]
[ECO "D78"]
[WhiteElo "2864"]
[BlackElo "2770"]
[Annotator "TA"]
[PlyCount "112"]
[EventDate "2022.05.30"]
[EventType "tourn"]
[EventCountry "NOR"]
[SourceTitle "playchess.com"]
[Source "ChessBase"]
[SourceQuality "1"]
[TimeControl "40/7200:0"]

{[%evp 15,112,-20,0,0,-8,-7,0,0,0,0,-4,-10,-21,-18,-10,-10,0,0,0,0,0,0,0,0,0,0,0,0,0,0,0,0,14,15,20,23,28,43,23,17,46,38,43,0,18,18,27,27,51,49,84,87,87,77,87,76,87,87,87,87,85,73,87,87,87,87,87,87,87,79,80,0,87,87,87,74,87,87,408,455,411,445,444,421,410,391,380,332,468,418,742,737,696,666,800,764,750,706,681]} 1. Nf3 {[%emt 0:00:17]} d5 {[%emt 0:00:32]} 2. g3 {[%emt 0:00:07]} g6 {[%emt 0:00:53]} 3. Bg2 {[%emt 0:00:11]} Bg7 {[%emt 0:00:04]} 4. d4 {[%emt 0:00:10]} Nf6 {[%emt 0:00:14]} 5. O-O {[%emt 0:00:10]} O-O {[%emt 0:00:22]} 6. c4 {[%emt 0:00:13]} c6 {[%emt 0:01:00]} 7. Nc3 {[%emt 0:00:08]} dxc4 {[%emt 0:04:33]} 8. e4 {[%emt 0:00:34] seems to push 8.Ne5 aside.} Bg4 {[%emt 0:00:58][%cal Oe7e5]} 9. h3 {[%emt 0:02:16] D78: Fianchetto Grünfeld: 6 0-0 c6.} Bxf3 {[%emt 0:00:19]} 10. Bxf3 {[%emt 0:00:02]} e5 {[%emt 0:01:54]} 11. dxe5 {[%emt 0:00:18] The position is equal.} Nfd7 {[%emt 0:00:07]} 12. e6 {[%emt 0:00:18]} fxe6 {[%emt 0:00:24]} 13. Be3 {[%emt 0:00:09] Prevents Nc5.} Qe7 {[%emt 0:12:29]} 14. Bg2 {[%emt 0:05:46]} Na6 {[%emt 0:22:47][%cal Bb8a6,Ba6b4,Bb4c2][%mdl 32] [#]} 15. Qe2 $146 {[%emt 0:12:12]} ({Predecessor:} 15. f4 Nb6 16. a4 Rad8 17. Qe2 Bd4 18. Bxd4 Rxd4 19. a5 Nc8 20. Rfd1 Rfd8 21. Rxd4 Rxd4 {0-1 (67) Abdala,H (2180)-Tugsavul,U (2365) ICCF email 2008}) 15... Nb4 {[%emt 0:09:30]} 16. Qxc4 {[%emt 0:04:19]} Nc2 {[%emt 0:01:01]} 17. Nd5 $1 {[%emt 0:00:03]} cxd5 {[%emt 0:06:31]} 18. Qxc2 {[%emt 0:00:02]} d4 {[%emt 0:03:14]} 19. Bd2 {[%emt 0:03:49]} Rac8 {[%emt 0:00:08]} 20. Qb3 {[%emt 0:01:20]} Nc5 {[%emt 0:01:52][%cal Bd7c5,Bc5a4,Ba4c3][%mdl 32]} 21. Qa3 {[%emt 0:03:10]} Qd7 {[%emt 0:04:36]} 22. Rac1 {[%emt 0:10:00]} b6 {[%emt 0:01:48]} 23. e5 {[%emt 0:08:16]} Bxe5 {[%emt 0:03:11]} 24. Rfe1 {[%emt 0:00:48]} Bg7 {[%emt 0:04:30]} 25. b4 {[%emt 0:00:59] Prevents a5.} Na4 {[%emt 0:04:16]} ({Much less strong is} 25... Qf7 26. f4 Nd7 27. Qxa7 $16) 26. Rxc8 {[%emt 0:00:22]} Rxc8 {[%emt 0:00:03]} 27. Qb3 {[%emt 0:00:26]} Nc3 {[%emt 0:00:36]} 28. Rxe6 {[%emt 0:07:03][%cal Re6e8] [#]} Kh8 {[%emt 0:00:10]} 29. Kh2 {[%emt 0:02:27]} Re8 {[%emt 0:02:43]} 30. Rxe8+ {[%emt 0:02:28]} Qxe8 {[%emt 0:00:01]} 31. Qc4 {[%emt 0:01:38]} h6 {[%emt 0:03:38]} 32. a3 {[%emt 0:06:00]} a5 {[%emt 0:01:47]} 33. bxa5 {[%emt 0:03:33]} bxa5 {[%emt 0:00:08]} 34. Bf1 {[%emt 0:10:45]} Qf8 {[%emt 0:02:30][%csl LRa3,LRf2]} 35. Kg2 {[%emt 0:01:59]} Ne4 {[%emt 0:03:21] [#]} 36. Be1 {[%emt 0:00:58]} Qxa3 {[%emt 0:03:25]} 37. Bd3 {[%emt 0:01:24]} Nd6 {[%emt 0:02:58]} 38. Qa6 {[%emt 0:02:18]} Nf5 {[%emt 0:04:33]} 39. h4 {[%emt 0:04:33] And now h5 would win.} h5 {[%emt 0:01:01]} 40. Bxa5 {[%emt 0:00:27]} Kh7 {[%emt 0:00:40]} 41. Qb5 {[%emt 2:00:27]} Qf8 {[%emt 1:59:56]} 42. Qd5 {[%emt 0:00:16]} Qd6 {[%emt 0:00:28]} 43. Qf3 {[%emt 0:00:16]} (43. Qxd6 $16 {Intending Qe6 and mate.} Nxd6 44. Bb4) 43... Qe5 {[%emt 0:00:34]} (43... Qa3 $11 44. Bxf5 Qxf3+ 45. Kxf3 gxf5) 44. Bd8 {[%emt 0:01:17]} Qe6 {[%emt 0:00:59]} 45. Qb7 {[%emt 0:01:23]} Nd6 {[%emt 0:01:00]} 46. Qc6 {[%emt 0:02:41] White is more active.} Qb3 $2 {[%emt 0:01:45][%mdl 8192] Black cannot hold the game after this.} (46... Bf6 $16) 47. Bxg6+ $1 $18 {[%emt 0:01:26]} Kxg6 {[%emt 0:00:00]} 48. Qxd6+ {[%emt 0:00:00][%mdl 4096] Endgame KQB-KQB} Kh7 {[%emt 0:00:00]} 49. Qd7 {[%emt 0:01:29] Against Qb7+. Bf6 is the strong threat.} Kg6 {[%emt 0:00:00] Prevents Bf6.} 50. Qc6+ {[%emt 0:03:30]} Kf7 {[%emt 0:00:00]} 51. Qc5 {[%emt 0:01:22]} Qb7+ {[%emt 0:00:14]} (51... Qd1 $142 52. Qd5+ Kg6 53. Qe6+ Kh7) 52. f3 {[%emt 0:00:00]} Ke8 {[%emt 0:00:00]} (52... Qd7 $142 53. Qxh5+ Kf8) 53. Bc7 {[%emt 0:00:38] White is clearly winning.} Qb2+ {[%emt 0:00:05]} 54. Kh3 {[%emt 0:00:00]} d3 {[%emt 0:00:00]} 55. Qxh5+ {[%emt 0:00:13]} Kd7 {[%emt 0:00:00]} 56. Qf7+ {[%emt 0:00:00]} Kc6 {[%emt 0:00:00] Weighted Error Value: White=0.03 (flawless) /Black=0.28 (precise)} 1-0

[Event "10th Norway Chess 2022"]
[Site "Stavanger"]
[Date "2022.06.06"]
[Round "6.1"]
[White "Radjabov, Teimour"]
[Black "Topalov, Veselin"]
[Result "1/2-1/2"]
[ECO "E36"]
[WhiteElo "2753"]
[BlackElo "2730"]
[Annotator "TA"]
[PlyCount "62"]
[EventDate "2022.05.30"]
[EventType "tourn"]
[EventCountry "NOR"]
[SourceTitle "playchess.com"]
[Source "ChessBase"]
[SourceQuality "1"]
[TimeControl "40/7200:0"]

{[%evp 15,62,17,15,14,13,25,20,18,22,17,23,14,25,18,18,12,23,18,13,0,0,0,0,0,0,0,0,0,0,0,3,0,0,0,0,0,0,0,0,0,0,0,0,0,0,0,0,0,0]} 1. d4 {[%emt 0:00:06]} Nf6 {[%emt 0:00:22]} 2. c4 {[%emt 0:00:19]} e6 {[%emt 0:00:14]} 3. Nc3 {[%emt 0:00:58]} Bb4 {[%emt 0:01:15]} 4. Qc2 {[%emt 0:00:13]} d5 {[%emt 0:03:44]} 5. a3 {[%emt 0:08:51]} Bxc3+ {[%emt 0:01:41]} 6. Qxc3 {[%emt 0:03:18]} O-O {[%emt 0:05:04]} 7. Nf3 {[%emt 0:02:14]} dxc4 {[%emt 0:02:07]} 8. Qxc4 {[%emt 0:00:12]} b6 {[%emt 0:02:02]} 9. Bg5 {[%emt 0:02:35] E36: Nimzo-Indian: Classical: 4...d5 5 a3.} Bb7 {[%emt 0:04:09]} 10. Rd1 {[%emt 0:15:26]} Nbd7 {[%emt 0:05:21]} 11. Ne5 {[%emt 0:04:05]} h6 {[%emt 0:06:27]} 12. Bh4 {[%emt 0:01:24]} c5 {[%emt 0:06:35]} 13. Nxd7 {[%emt 0:13:29]} Qxd7 {[%emt 0:00:16]} 14. Bxf6 {[%emt 0:00:46]} gxf6 {[%emt 0:00:08]} 15. dxc5 {[%emt 0:00:09]} Qc7 {[%emt 0:05:02]} 16. h4 {[%emt 0:07:43]} Rfd8 {[%emt 0:05:12] The position is equal.} 17. Rxd8+ {[%emt 0:04:20]} Rxd8 {[%emt 0:00:15]} 18. Rh3 {[%emt 0:01:30]} Rd5 $1 {[%emt 0:05:52]} (18... Qd7 $2 19. Rd3 Qe8 20. Rxd8 Qxd8 21. c6 $18) 19. Rg3+ {[%emt 0:04:19]} Kf8 {[%emt 0:00:38]} 20. Rc3 {[%emt 0:00:40]} Rxc5 {[%emt 0:02:57]} 21. Qb4 {[%emt 0:00:49] [#]} Kg7 $146 {[%emt 0:08:42]} ({Predecessor:} 21... a5 22. Rxc5 bxc5 23. Qc3 Kg7 24. e3 Qb6 25. g3 Bd5 26. Be2 Bb3 27. g4 e5 {½-½ (35) Dreev,A (2662)-Gelfand,B (2686) Douglas 2019}) 22. Rxc5 {[%emt 0:01:40]} bxc5 $11 {[%emt 0:01:59][%mdl 4096] Endgame KQB-KQB} 23. Qc3 {[%emt 0:00:19]} Qh2 {[%emt 0:11:25][%csl LRg2,LRh4]} 24. Qxc5 {[%emt 0:02:21]} Bxg2 {[%emt 0:01:00]} 25. Bxg2 {[%emt 0:00:07]} Qxg2 {[%emt 0:00:06]} 26. Qxa7 {[%emt 0:00:29] Qd4 is the strong threat. KQ-KQ} Qh1+ {[%emt 0:01:43]} 27. Kd2 {[%emt 0:01:44] [#] Strongly threatening Qd4.} Qd5+ {[%emt 0:01:19]} 28. Kc3 {[%emt 0:01:09] Threatens to win with a4.} Qc6+ {[%emt 0:02:14]} 29. Kd2 {[%emt 0:00:52] Black must now prevent Qd4.} Qd5+ {[%emt 0:00:57]} 30. Kc3 {[%emt 0:00:07] aiming for Qd4.} Qc6+ {[%emt 0:00:07]} 31. Kd2 {[%emt 0:00:04] [#] And now Qd4 would win.} Qd5+ {[%emt 0:00:07] An interesting draw.  Weighted Error Value: White=0.02 (flawless) /Black=0.00 (flawless)} 1/2-1/2

[Event "10th Norway Chess 2022"]
[Site "Stavanger"]
[Date "2022.06.09"]
[Round "8.1"]
[White "Carlsen, Magnus"]
[Black "Vachier-Lagrave, Maxime"]
[Result "1/2-1/2"]
[ECO "D85"]
[WhiteElo "2864"]
[BlackElo "2750"]
[Annotator "TA"]
[PlyCount "157"]
[EventDate "2022.05.30"]
[EventType "tourn"]
[EventCountry "NOR"]
[SourceTitle "playchess.com"]
[Source "ChessBase"]
[SourceQuality "1"]
[TimeControl "40/7200:0"]

{[%evp 16,157,5,12,33,29,17,33,25,26,29,26,31,36,29,12,17,7,11,10,10,-42,-42,-46,-45,-41,-12,-63,-60,-74,-53,-55,-55,-57,-50,-75,-62,-53,-50,-64,-62,-48,-48,-48,-48,-47,0,-52,-36,-62,-61,-62,-61,-61,-61,-80,-80,-80,-80,-80,-59,-59,-59,-60,-56,-117,-117,-117,-117,-116,-116,-116,-116,-148,-132,-245,-241,-306,-306,-296,-281,-343,-160,-160,-69,-69,-69,-80,-80,-80,-20,-24,-12,-12,0,-80,-80,-80,-80,-80,-80,-470,-470,-463,-463,-80,-80,-80,-80,-80,-80,-80,-80,-80,0,-80,-80,-80,-80,-80,-80,-80,-80,-80,-80,-80,-80,-80,-80,-80,-80,-80,-80,-80,-80,-80,0,-80,-80,-80,-80,-80,-80,-80]} 1. d4 {[%emt 0:00:03]} Nf6 {[%emt 0:00:02]} 2. c4 {[%emt 0:00:16]} g6 {[%emt 0:00:02]} 3. Nc3 {[%emt 0:00:08]} d5 {[%emt 0:00:02]} 4. cxd5 {[%emt 0:00:18]} Nxd5 {[%emt 0:00:05]} 5. e4 {[%emt 0:00:08]} Nxc3 {[%emt 0:00:02]} 6. bxc3 {[%emt 0:00:08]} Bg7 {[%emt 0:00:02]} 7. Bb5+ {[%emt 0:00:13]} c6 {[%emt 0:00:09]} 8. Ba4 {[%emt 0:00:06]} b5 {[%emt 0:04:28]} 9. Bb3 {[%emt 0:00:46]} a5 {[%emt 0:00:08] D85: Exchange Grünfeld: Unusual White 7th moves and lines with 7 Nf3.} (9... b4 $5) 10. Nf3 {[%emt 0:01:27]} O-O {[%emt 0:05:04]} 11. O-O {[%emt 0:18:37]} a4 {[%emt 0:01:07] White is slightly better.} 12. Bc2 {[%emt 0:00:57]} c5 {[%emt 0:00:04]} 13. Rb1 {[%emt 0:05:16]} Bg4 {[%emt 0:12:59] [#]} 14. e5 $146 {[%emt 0:14:23]} ({Predecessor:} 14. Rxb5 Bxf3 15. Qxf3 cxd4 16. cxd4 Nc6 17. Be3 Nxd4 18. Bxd4 Qxd4 19. a3 Rfd8 20. Rb4 {½-½ (83) Moroni,L (2588)-Deac,B (2679) Chess.com INT 2022}) 14... Nc6 {[%emt 0:03:56]} 15. Be4 {[%emt 0:04:17]} (15. Rxb5 cxd4 16. Be4 (16. cxd4 Bxf3 17. gxf3 Nxd4 $15) 16... Nxe5 $1 17. cxd4 (17. Bxa8 Qxa8 18. Rxe5 Bxe5 $17) 17... Nxf3+ 18. gxf3 Bd7 $15) 15... Rc8 {[%emt 0:02:04]} 16. h3 {[%emt 0:03:13]} Bxf3 {[%emt 0:01:51]} 17. Qxf3 {[%emt 0:00:34]} Qd7 {[%emt 0:00:09]} 18. Bd3 {[%emt 0:31:06]} (18. Rxb5 $2 Nxd4 $1 {[%mdl 512]} 19. cxd4 Qxb5 $19) (18. Bxc6 $11 Rxc6 19. Be3 (19. Rxb5 cxd4 20. Rd5 Qc7 $15)) 18... cxd4 $15 {[%emt 0:04:23]} 19. Bxb5 {[%emt 0:00:12]} dxc3 {[%emt 0:00:34]} 20. Qxc3 {[%emt 0:03:51]} Qd5 {[%emt 0:04:23]} (20... Qf5 $5 {[%cal Rf5b1]} 21. Qd3 Qxd3 22. Bxd3 Bxe5 $15) 21. Bxa4 {[%emt 0:10:27]} (21. Qe3 $11) 21... Qxa2 {[%emt 0:01:58]} (21... Bxe5 22. Qb3 Qe4 23. Qc2 Qxc2 24. Bxc2 $11) 22. Ra1 {[%emt 0:05:32]} Nxe5 {[%emt 0:05:02] Hoping for ...Qxa4.} 23. Rxa2 {[%emt 0:00:36]} Rxc3 {[%emt 0:00:05]} 24. Bd2 {[%emt 0:00:54]} Rcc8 {[%emt 0:01:13]} 25. Bb5 {[%emt 0:00:07]} Rc5 {[%emt 0:02:15]} 26. Be2 {[%emt 0:00:38]} Nc6 {[%emt 0:00:16]} 27. Rc1 {[%emt 0:00:16]} Rxc1+ {[%emt 0:00:07]} 28. Bxc1 {[%emt 0:00:01]} Rb8 {[%emt 0:01:25]} 29. Be3 {[%emt 0:01:48]} Bd4 {[%emt 0:02:28]} 30. Bh6 {[%emt 0:03:11]} Bg7 {[%emt 0:00:18]} 31. Be3 {[%emt 0:00:11] This bishop pair is nice.} h5 {[%emt 0:00:30]} 32. g3 {[%emt 0:02:29]} e6 {[%emt 0:01:27][%cal Be7e6,Be6e5][%mdl 32]} 33. Kg2 {[%emt 0:00:08]} Nb4 {[%emt 0:00:22]} 34. Rd2 {[%emt 0:03:16]} Nd5 {[%emt 0:02:10]} 35. Rd3 {[%emt 0:01:35]} Nxe3+ {[%emt 0:09:15]} 36. Rxe3 $17 {[%emt 0:00:01][%mdl 4096] Endgame KRB-KRB} Bd4 {[%emt 0:00:09]} 37. Rd3 {[%emt 0:00:02]} e5 {[%emt 0:00:07]} 38. Rd2 {[%emt 0:00:01]} Kg7 {[%emt 0:00:23]} 39. h4 {[%emt 0:00:03]} Kh6 {[%emt 0:02:11]} 40. f4 {[%emt 0:00:56]} (40. Bc4 $15) 40... Be3 $1 {[%emt 0:03:58][%csl LRd2,LRf4]} 41. Rd7 {[%emt 1:59:52]} exf4 {[%emt 1:59:59]} 42. gxf4 {[%emt 0:00:26]} f5 {[%emt 0:02:18]} 43. Kf3 {[%emt 0:00:00]} Bc1 {[%emt 0:00:22]} 44. Bc4 {[%emt 0:00:24]} Rc8 {[%emt 0:00:08]} ({Inferior is} 44... Rb4 45. Rc7 $17) 45. Bf7 {[%emt 0:00:52]} (45. Bd3 $17) 45... Rc3+ $19 {[%emt 0:00:48]} 46. Kg2 {[%emt 0:00:00]} Bxf4 {[%emt 0:00:00]} 47. Bg8 {[%emt 0:00:00][%csl Gg8][%cal Rd7h7]} g5 {[%emt 0:04:04]} 48. Be6 {[%emt 0:00:00]} Kg6 {[%emt 0:02:02]} (48... gxh4 $19 {has better winning chances.} 49. Bxf5 Re3) 49. Rd5 $17 {[%emt 0:00:00]} g4 {[%emt 0:00:49]} ({Better is} 49... gxh4 $17 {Threatens to win with ...h3+.} 50. Bxf5+ Kh6) 50. Bxf5+ $15 {[%emt 0:00:00]} Kf6 {[%emt 0:00:00] And now ...Rh3 would win.} 51. Bh7 {[%emt 0:00:00]} Be5 {[%emt 0:00:50] aiming for ...Rg3+.} 52. Bg6 {[%emt 0:00:00]} g3 {[%emt 0:04:46]} (52... Kxg6 53. Rxe5 Rh3 54. Rg5+ Kh6 55. Ra5 $15) (52... Rh3 $17 53. Bxh5 Rh2+ 54. Kf1 Rh1+ 55. Ke2 Rh2+ 56. Ke3 Rxh4) 53. Ra5 {[%emt 0:00:00]} Rc4 {[%emt 0:02:10]} 54. Ra6+ {[%emt 0:00:00]} Kg7 {[%emt 0:00:10]} 55. Bxh5 {[%emt 0:00:00]} (55. Re6 $11) 55... Rxh4 $17 {[%emt 0:01:04]} ({Don't play} 55... Rc2+ $6 56. Kf3 $11) 56. Rg6+ {[%emt 0:00:00]} Kh7 {[%emt 0:00:00]} 57. Rg5 {[%emt 0:00:00]} Rh2+ {[%emt 0:02:21]} 58. Kf3 $2 {[%emt 0:00:00][%mdl 8192]} (58. Kg1 $17) 58... Rf2+ $19 {[%emt 0:00:02]} 59. Kg4 {[%emt 0:00:00] [#]} Bf4 $1 {[%emt 0:01:23]} 60. Rg6 {[%emt 0:00:00]} Rf1 {[%emt 0:01:31]} 61. Kf5 {[%emt 0:00:00] [#]} Bg5+ $1 {[%emt 0:01:58]} 62. Ke4 {[%emt 0:00:00]} Rf4+ {[%emt 0:00:42]} 63. Kd3 {[%emt 0:00:00]} Rf5 {[%emt 0:00:11]} 64. Ke4 {[%emt 0:00:00]} Rf4+ {[%emt 0:02:17]} 65. Kd3 $1 {[%emt 0:00:00] [#]} Bh4 $1 {[%emt 0:05:45]} 66. Re6 {[%emt 0:00:00]} g2 {[%emt 0:00:09]} 67. Rg6 {[%emt 0:00:00]} Rf5 {[%emt 0:00:25] ( -> ...Rg5)} 68. Rxg2 {[%emt 0:00:00]} Rxh5 $17 {[%emt 0:00:00] KRB-KR} 69. Ke4 {[%emt 0:00:00]} Bf6 {[%emt 0:00:00]} 70. Kf4 {[%emt 0:00:00]} Bg7 {[%emt 0:00:00]} 71. Ke4 {[%emt 0:00:00]} Kg8 {[%emt 0:00:00]} 72. Rg6 {[%emt 0:00:00]} Kf7 {[%emt 0:00:00]} 73. Ra6 {[%emt 0:00:00]} Bf6 {[%emt 0:00:00]} 74. Ra8 {[%emt 0:00:00]} Rh4+ {[%emt 0:00:00]} 75. Kf5 {[%emt 0:00:00]} Rh5+ {[%emt 0:00:00]} 76. Ke4 $1 {[%emt 0:00:00]} Rb5 {[%emt 0:00:00] Against Rb8. Black is better.} 77. Kf4 {[%emt 0:00:00]} Be5+ {[%emt 0:00:00]} 78. Ke4 {[%emt 0:00:00]} Bd6 {[%emt 0:00:00]} 79. Rh8 {[%emt 0:00:00] White happily takes the draw.  Weighted Error Value: White=0.29 (precise) /Black=0.11 (very precise)} 1/2-1/2